bitfinex-derivatives/quotes_ETHF0:USTF0_20250422
["timestamp","ask_amount","ask_price","bid_price","bid_amount"]
[1745297528111,12.10169,1582.5,1582.4,0.00946372]
[1745297528421,7.10169,1582.5,1582.4,0.00946372]
[1745297529920,12.21264373,1582.5,1582.4,0.00946372]
[1745297530517,7.21264373,1582.5,1582.4,0.00946372]
[1745297531620,13.19664373,1582.5,1582.4,0.00946372]
[1745297532020,13.08569,1582.5,1582.4,0.00946372]
[1745297534121,19.40769,1582.5,1582.4,0.00946372]
[1745297536426,29.89769,1582.5,1582.4,0.00946372]
[1745297537724,23.52569,1582.5,1582.4,0.00946372]
[1745297538122,17.20369,1582.5,1582.4,0.00946372]
[1745297538420,14.57359,1582.5,1582.4,1.73216372]
[1745297538628,1.26379,1582.5,1582.4,6.73216372]
[1745297539127,1.26379,1582.5,1582.4,7.99603372]
[1745297539327,1.26379,1582.5,1582.4,6.73216372]
[1745297541528,1.26379,1582.5,1582.4,1.73216372]
[1745297543728,1.26379,1582.5,1582.4,2.99603372]
[1745297544118,1.26379,1582.5,1582.4,9.31803372]
[1745297544924,1.26374,1582.6,1582.5,1.26376]
[1745297545129,3.21726372,1582.7,1582.5,2.7387]
[1745297545326,3.21726372,1582.7,1582.6,2.17551]
[1745297545628,3.21726372,1582.7,1582.6,4.01721]
[1745297546029,4.48091372,1582.7,1582.6,4.01721]
[1745297547230,4.48091372,1582.7,1582.6,2.7535]
[1745297548931,1.27311372,1582.7,1582.6,2.7535]
[1745297550135,0.00946372,1582.7,1582.6,4.01721]
[1745297552630,0.00946372,1582.7,1582.6,9.01721]
[1745297552934,0.00946372,1582.7,1582.6,4.01721]
[1745297554233,0.00946372,1582.7,1582.6,9.01721]
[1745297554436,3.2078,1582.9,1582.8,1.26355]
[1745297554637,3.94255,1583.1,1583.0,1.26339]
[1745297554831,5.34317,1583.2,1583.1,1.26331]
[1745297555033,1.26332,1583.1,1583.0,1.26333]
[1745297555836,1.27274372,1583.2,1583.1,1.26331]
[1745297557432,1.27274372,1583.2,1582.9,1.6758]
[1745297557731,0.00946372,1583.2,1583.1,1.26331]
[1745297557928,1.27269372,1583.2,1583.0,1.26333]
[1745297558131,2.97629372,1583.2,1583.0,1.26333]
[1745297558533,2.97629372,1583.2,1583.1,1.26331]
[1745297558731,6.18409372,1583.2,1583.1,1.26331]
[1745297559439,1.26331,1583.1,1583.0,1.26333]
[1745297559640,2.95181,1583.1,1583.0,1.26333]
[1745297560041,3.86881,1583.1,1583.0,1.26333]
[1745297560240,3.86881,1583.1,1583.0,7.58533]
[1745297561242,1.26339,1583.0,1582.9,2.93926]
[1745297561537,3.82469,1583.0,1582.9,1.26347]
[1745297561936,2.5613,1583.0,1582.9,1.26347]
[1745297562337,3.82469,1583.0,1582.9,1.26347]
[1745297563642,3.82469,1583.0,1582.7,4.47136]
[1745297564144,3.04828,1582.9,1582.7,4.47136]
[1745297565140,3.04828,1582.9,1582.7,10.79336]
[1745297565438,1.7848,1582.9,1582.7,10.79336]
[1745297565640,1.7848,1582.9,1582.7,9.5298]
[1745297565838,3.04831,1582.9,1582.7,10.79342]
[1745297566845,1.26355,1582.8,1582.7,10.79342]
[1745297567437,1.26355,1582.8,1582.7,9.5298]
[1745297567636,1.26355,1582.8,1582.7,10.79343]
[1745297567843,3.0483,1582.9,1582.7,10.79343]
[1745297568246,1.7848,1582.9,1582.7,9.5298]
[1745297568542,1.26355,1582.8,1582.7,9.5298]
[1745297568741,3.04834,1582.9,1582.7,7.58563]
[1745297568943,2.10155,1582.8,1582.7,6.322]
[1745297569139,1.26368,1582.7,1582.5,5.37813]
[1745297569441,2.6722,1582.8,1582.5,3.2078]
[1745297569442,4.01051,1582.6,1582.5,3.2078]
[1745297569639,4.01051,1582.6,1582.5,4.47159]
[1745297570247,4.01051,1582.6,1582.5,10.79359]
[1745297570545,2.7468,1582.6,1582.5,10.79359]
[1745297571642,4.01051,1582.6,1582.5,10.79359]
[1745297571946,2.7468,1582.6,1582.5,10.79359]
[1745297573444,2.7468,1582.6,1582.5,7.58579]
[1745297573644,2.7468,1582.6,1582.5,10.79359]
[1745297574147,2.7468,1582.6,1582.5,4.47159]
[1745297575447,4.01051,1582.6,1582.5,4.47159]
[1745297575749,2.7468,1582.6,1582.5,4.47159]
[1745297577146,4.01051,1582.6,1582.5,4.47159]
[1745297577946,2.7468,1582.6,1582.5,4.47159]
[1745297578142,1.26379,1582.5,1582.4,1.27332372]
[1745297578345,3.85439,1582.5,1582.4,0.00946372]
[1745297579054,3.85439,1582.5,1582.4,1.27333372]
[1745297580651,3.85439,1582.5,1582.4,0.00946372]
[1745297580852,3.85439,1582.5,1582.4,1.27333372]
[1745297581146,3.85439,1582.5,1582.4,0.00946372]
[1745297581851,3.85439,1582.5,1582.4,1.27333372]
[1745297582151,2.5906,1582.5,1582.4,1.27333372]
[1745297583145,0.9126,1582.6,1582.5,1.26379]
[1745297583344,2.763,1582.6,1582.5,3.87119]
[1745297585943,4.02671,1582.6,1582.5,3.87119]
[1745297586147,2.763,1582.6,1582.5,3.87119]
[1745297587063,4.02671,1582.6,1582.5,1.7203]
[1745297588079,4.02671,1582.6,1582.5,2.98409]
[1745297590370,4.02671,1582.6,1582.5,9.30609]
[1745297590675,4.02671,1582.6,1582.5,8.0423]
[1745297590992,4.02671,1582.6,1582.5,6.322]
[1745297591191,1.26379,1582.5,1582.4,1.27330372]
[1745297591492,3.08649,1582.5,1582.4,1.27330372]
[1745297592190,3.08649,1582.5,1582.4,7.59530372]
[1745297592986,3.08649,1582.5,1582.4,6.33146372]
[1745297593292,3.08649,1582.5,1582.4,0.00946372]
[1745297597766,3.08649,1582.5,1582.4,3.05793372]
[1745297599163,3.08649,1582.5,1582.4,1.79406372]
[1745297602468,3.15992,1582.3,1581.9,4.47199]
[1745297602669,6.36772,1582.3,1581.9,3.89113]
[1745297602870,1.26416,1582.1,1582.0,1.7866]
[1745297603070,1.26419,1582.0,1581.9,2.10451]
[1745297603272,3.95798,1582.1,1581.9,10.21311]
[1745297603468,3.95798,1582.1,1582.0,1.7866]
[1745297605473,1.26419,1582.0,1581.9,0.8403]
[1745297605676,2.94599,1582.0,1581.9,2.6531]
[1745297606175,2.94599,1582.0,1581.9,8.9751]
[1745297606773,2.94599,1582.0,1581.9,8.1348]
[1745297607181,2.94599,1582.0,1581.9,6.322]
[1745297607778,2.94599,1582.0,1581.9,8.0497]
[1745297607979,2.94599,1582.0,1581.9,8.923]
[1745297608581,2.94599,1582.0,1581.9,6.322]
[1745297609777,2.94599,1582.0,1581.9,7.1953]
[1745297610380,2.94599,1582.0,1581.9,9.8398]
[1745297613584,2.94599,1582.0,1581.9,6.322]
[1745297614276,1.26427,1581.9,1581.8,0.00946372]
[1745297614576,3.92907,1581.9,1581.8,0.00946372]
[1745297616976,3.92907,1581.9,1581.8,1.71666372]
[1745297617784,3.92907,1581.9,1581.8,2.98101372]
[1745297618083,3.92907,1581.9,1581.8,1.71666372]
[1745297620487,3.92907,1581.9,1581.8,2.98101372]
[1745297621182,3.92907,1581.9,1581.8,1.71666372]
[1745297621889,3.92907,1581.9,1581.8,2.98101372]
[1745297625076,2.6648,1581.9,1581.8,2.98101372]
[1745297625580,3.92907,1581.9,1581.8,2.98101372]
[1745297626585,3.92907,1581.9,1581.8,1.27381372]
[1745297627393,3.92907,1581.9,1581.8,0.00946372]
[1745297633597,3.92907,1581.9,1581.8,1.71156372]
[1745297633994,3.92907,1581.9,1581.8,2.59906372]
[1745297636697,3.92907,1581.9,1581.8,0.00946372]
[1745297643492,8.05007,1581.9,1581.8,0.00946372]
[1745297643695,11.25787,1581.9,1581.8,0.00946372]
[1745297653708,10.37877,1581.9,1581.8,0.00946372]
[1745297653907,10.37877,1581.9,1581.8,3.60536372]
[1745297654203,5.38527,1581.9,1581.8,3.60536372]
[1745297654407,0.00946372,1582.2,1581.8,8.60536372]
[1745297654603,1.26415,1582.1,1581.9,1.8513]
[1745297654804,1.26415,1582.1,1581.9,3.11551]
[1745297655000,1.26415,1582.1,1582.0,40.8]
[1745297655201,1.26415,1582.1,1582.0,42.6513]
[1745297656101,1.26415,1582.1,1582.0,48.9733]
[1745297657509,1.26415,1582.1,1582.0,50.23749]
[1745297659209,1.27355372,1582.2,1582.1,1.26411]
[1745297659407,0.00946372,1582.2,1582.1,4.78011]
[1745297659602,1.27349372,1582.2,1582.1,4.78011]
[1745297660308,0.00946372,1582.2,1582.1,4.78011]
[1745297661314,1.27349372,1582.2,1582.1,4.78011]
[1745297661906,0.00946372,1582.2,1582.1,4.78011]
[1745297663108,1.26411,1582.1,1582.0,9.5298]
[1745297663312,1.26411,1582.1,1582.0,6.322]
[1745297663505,6.25951,1582.1,1582.0,6.322]
[1745297663705,8.07641,1582.1,1582.0,6.322]
[1745297664315,3.95641,1582.1,1582.0,1.8027]
[1745297665121,3.95641,1582.1,1582.0,8.1247]
[1745297667520,3.95641,1582.1,1582.0,9.38889]
[1745297668214,3.95641,1582.1,1582.0,8.1247]
[1745297668816,3.95641,1582.1,1582.0,6.322]
[1745297669119,1.26419,1582.0,1581.9,1.7676]
[1745297669409,2.98839,1582.0,1581.9,1.7676]
[1745297670005,3.91579,1582.0,1581.9,1.7676]
[1745297670208,3.91579,1582.0,1581.9,8.0896]
[1745297670813,3.91579,1582.0,1581.9,6.322]
[1745297671114,3.91579,1582.0,1581.8,0.00946372]
[1745297671115,1.26427,1581.9,1581.8,0.00946372]
[1745297671317,3.00317,1581.9,1581.8,0.00946372]
[1745297673125,3.00317,1581.9,1581.8,1.79036372]
[1745297676419,3.00317,1581.9,1581.8,0.00946372]
[1745297677627,3.00317,1581.9,1581.8,1.76016372]
[1745297678620,3.00317,1581.9,1581.8,0.00946372]
[1745297686028,3.85907,1581.9,1581.8,0.00946372]
[1745297689732,1.26427,1581.9,1581.8,0.00946372]
[1745297689932,1.26427,1581.9,1581.8,2.74866372]
[1745297691025,3.09617,1581.9,1581.8,2.74866372]
[1745297691425,3.09617,1581.9,1581.8,0.00946372]
[1745297691827,7.22417,1581.9,1581.8,0.00946372]
[1745297693737,0.00946372,1582.2,1581.8,9.94526372]
[1745297694033,0.00946372,1582.2,1582.0,1.26417]
[1745297694626,1.26411,1582.1,1582.0,1.26417]
[1745297695037,1.26411,1582.1,1582.0,6.26417]
[1745297695237,1.26411,1582.1,1582.0,12.58617]
[1745297695734,1.26411,1582.1,1582.0,11.322]
[1745297695938,1.26411,1582.1,1582.0,6.322]
[1745297698825,2.12821,1582.1,1582.0,6.322]
[1745297699039,3.85371,1582.1,1582.0,6.322]
[1745297699241,1.26419,1582.0,1581.9,1.758]
[1745297700141,1.26419,1582.0,1581.9,8.08]
[1745297700734,1.26419,1582.0,1581.9,9.34427]
[1745297701540,1.26419,1582.0,1581.9,8.08]
[1745297701938,7.06154,1582.1,1581.9,8.08]
[1745297702235,3.85374,1582.1,1581.9,8.08]
[1745297703637,3.85374,1582.1,1581.9,9.34424]
[1745297703835,3.85374,1582.1,1581.9,9.34425]
[1745297704345,2.5896,1582.1,1582.0,1.26419]
[1745297705239,2.5896,1582.1,1582.0,7.58619]
[1745297706138,2.5896,1582.1,1582.0,1.26419]
[1745297706346,2.17036372,1582.2,1582.0,1.26419]
[1745297706536,3.87336372,1582.2,1582.0,1.26419]
[1745297706740,4.79326372,1582.2,1582.0,1.26419]
[1745297707031,1.71246372,1582.2,1582.1,1.26411]
[1745297707238,2.97649372,1582.2,1582.1,1.26411]
[1745297707440,2.97649372,1582.2,1582.0,7.58613]
[1745297707744,3.89639372,1582.2,1582.1,1.26411]
[1745297707945,3.89639372,1582.2,1582.0,7.58615]
[1745297708145,1.26411,1582.1,1582.0,7.58615]
[1745297708546,1.26411,1582.1,1582.0,6.322]
[1745297709746,1.26411,1582.1,1582.0,7.58619]
[1745297710154,2.98651,1582.1,1582.0,1.26419]
[1745297712046,1.26419,1582.0,1581.9,3.02223]
[1745297713143,1.26419,1582.0,1581.9,9.34423]
[1745297713943,1.26419,1582.0,1581.9,11.10193]
[1745297715045,2.98656,1582.1,1581.9,11.10193]
[1745297715246,2.98656,1582.1,1582.0,1.7577]
[1745297716046,2.98656,1582.1,1582.0,3.02189]
[1745297716247,2.98656,1582.1,1582.0,9.34389]
[1745297717658,2.19346372,1582.2,1582.0,9.34389]
[1745297717851,2.76086372,1582.2,1582.1,3.06341]
[1745297718150,4.02489372,1582.2,1582.1,3.06341]
[1745297719151,2.76086372,1582.2,1582.1,3.06341]
[1745297722147,4.02489372,1582.2,1582.1,3.06341]
[1745297722347,2.76086372,1582.2,1582.1,3.06341]
[1745297723056,4.02489372,1582.2,1582.1,3.06341]
[1745297723550,2.76086372,1582.2,1582.1,1.7993]
[1745297724854,4.02489372,1582.2,1582.1,1.7993]
[1745297725053,4.02489372,1582.2,1582.1,3.06341]
[1745297725254,2.76086372,1582.2,1582.1,3.06341]
[1745297725555,4.02489372,1582.2,1582.1,1.7993]
[1745297725750,2.76086372,1582.2,1582.1,3.06341]
[1745297725949,3.10499372,1582.2,1582.1,3.06341]
[1745297726448,3.10499372,1582.2,1582.1,1.7993]
[1745297726648,3.10499372,1582.2,1582.1,3.95931]
[1745297726854,3.10499372,1582.2,1582.1,2.6952]
[1745297727356,3.10499372,1582.2,1582.1,3.95931]
[1745297727548,0.00946372,1582.2,1582.1,3.95931]
[1745297727854,3.06099,1582.5,1582.1,10.85548]
[1745297728056,3.06099,1582.5,1582.4,1.26387]
[1745297729049,3.06099,1582.5,1582.4,1.7692]
[1745297731856,3.06099,1582.5,1582.4,3.03307]
[1745297733860,1.7972,1582.5,1582.4,3.03307]
[1745297734157,3.06099,1582.5,1582.4,9.35507]
[1745297735455,1.7972,1582.5,1582.4,9.35507]
[1745297736254,1.7972,1582.5,1582.4,3.03307]
[1745297736458,3.06099,1582.5,1582.4,3.03307]
[1745297737459,1.7972,1582.5,1582.4,3.03307]
[1745297738258,1.7972,1582.5,1582.4,9.35507]
[1745297739158,1.7972,1582.5,1582.4,3.03307]
[1745297740059,3.06099,1582.5,1582.4,3.03307]
[1745297740259,1.7972,1582.5,1582.4,9.35507]
[1745297741160,1.7972,1582.5,1582.4,3.03307]
[1745297741859,3.06099,1582.5,1582.4,3.03307]
[1745297742760,1.7972,1582.5,1582.4,3.03307]
[1745297742961,3.06099,1582.5,1582.4,3.03307]
[1745297743161,3.06099,1582.5,1582.4,9.35507]
[1745297744064,1.7972,1582.5,1582.4,9.35507]
[1745297744261,1.7972,1582.5,1582.4,3.03307]
[1745297746163,1.7972,1582.5,1582.4,9.35507]
[1745297747165,1.7972,1582.5,1582.4,3.03307]
[1745297747764,6.26879,1582.5,1582.4,1.26387]
[1745297748664,3.06099,1582.5,1582.4,1.26387]
[1745297749764,6.26879,1582.5,1582.4,1.26387]
[1745297751270,6.26879,1582.5,1582.4,7.58587]
[1745297751868,3.06099,1582.5,1582.4,7.58587]
[1745297752171,3.06099,1582.5,1582.4,1.26387]
[1745297755363,31.39204845,1582.5,1581.8,8.41212354]
[1745297755565,3.2078,1582.2,1581.8,8.41212354]
[1745297755873,1.26422,1582.0,1581.8,8.41212354]
[1745297756075,1.7725,1581.9,1581.8,8.41212354]
[1745297757367,1.7725,1581.9,1581.8,9.67647354]
[1745297757567,1.7725,1581.9,1581.8,8.41212354]
[1745297757766,1.7725,1581.9,1581.8,0.00946372]
[1745297758173,3.03677,1581.9,1581.8,0.00946372]
[1745297761471,1.26459,1581.5,1581.4,0.9175]
[1745297761675,1.26459,1581.5,1581.4,2.7619]
[1745297761878,1.26459,1581.5,1581.4,1.8444]
[1745297762076,4.71999,1581.5,1581.4,1.8444]
[1745297762875,4.48183372,1581.6,1581.4,1.8444]
[1745297763071,0.00946372,1581.6,1581.5,1.26459]
[1745297763265,0.00946372,1581.6,1581.5,3.08849]
[1745297763466,1.27397372,1581.6,1581.5,3.08849]
[1745297764279,1.27397372,1581.6,1581.5,9.41049]
[1745297764979,1.27397372,1581.6,1581.5,8.1459]
[1745297766382,1.27397372,1581.6,1581.5,9.0458]
[1745297766884,3.08487372,1581.6,1581.5,9.0458]
[1745297767885,3.08487372,1581.6,1581.5,10.31039]
[1745297768177,1.82036372,1581.6,1581.5,10.31039]
[1745297768381,3.08487372,1581.6,1581.5,9.0458]
[1745297768877,3.98617372,1581.6,1581.5,9.0458]
[1745297769982,3.98617372,1581.6,1581.5,10.31039]
[1745297772585,2.72166372,1581.6,1581.5,10.31039]
[1745297773288,3.98617372,1581.6,1581.5,10.31039]
[1745297781807,0.00946372,1581.6,1581.5,10.31039]
[1745297785409,1.27397372,1581.6,1581.5,10.31039]
[1745297785713,0.00946372,1581.6,1581.5,10.31039]
[1745297786511,1.27397372,1581.6,1581.5,10.31039]
[1745297786706,0.00946372,1581.6,1581.5,10.31039]
[1745297786916,1.27397372,1581.6,1581.5,10.31039]
[1745297787108,3.07367372,1581.6,1581.5,10.31039]
[1745297787412,3.07367372,1581.6,1581.5,9.41049]
[1745297787601,3.97017372,1581.6,1581.5,7.58659]
[1745297788703,3.97017372,1581.6,1581.5,9.37789]
[1745297794814,7.17797372,1581.6,1581.5,6.322]
[1745297795017,7.17797372,1581.6,1581.5,6.31253628]
[1745297795216,1.26467,1581.4,1581.3,0.89656372]
[1745297795813,13.59347,1581.4,1581.3,0.00946372]
[1745297796017,15.30847,1581.4,1581.3,0.00946372]
[1745297796315,21.63047,1581.4,1581.3,0.00946372]
[1745297796815,38.21508192,1581.4,1581.3,0.00946372]
[1745297797617,38.21508143,1581.4,1581.3,0.00946372]
[1745297798213,31.89308143,1581.4,1581.3,0.00946372]
[1745297798612,1.26515,1580.8,1580.7,8.40265982]
[1745297798814,8.59495,1580.8,1580.7,8.40265982]
[1745297799418,10.32335,1580.8,1580.7,8.40265982]
[1745297799918,7.11555,1580.8,1580.7,8.40265982]
[1745297800116,10.32335,1580.8,1580.7,8.40265982]
[1745297800417,10.32335,1580.8,1580.6,12.54821651]
[1745297800418,1.26523,1580.7,1580.6,1.7992]
[1745297800712,2.99363,1580.7,1580.6,1.7992]
[1745297802020,1.26531,1580.6,1580.5,8.0098]
[1745297802217,1.7284,1580.6,1580.5,9.809]
[1745297802520,2.99371,1580.6,1580.5,9.809]
[1745297803517,2.99371,1580.6,1580.5,6.322]
[1745297804517,2.99371,1580.6,1580.5,7.2029]
[1745297804820,2.99371,1580.6,1580.5,9.0364]
[1745297806719,2.99371,1580.6,1580.5,8.1555]
[1745297807221,2.99371,1580.6,1580.5,6.322]
[1745297807423,6.20151,1580.6,1580.5,6.322]
[1745297809222,1.26571,1580.1,1579.9,1.26582]
[1745297809519,1.26569,1580.2,1580.0,6.7952]
[1745297809719,1.26569,1580.2,1580.1,1.821]
[1745297809919,1.26571,1580.1,1580.0,4.9742]
[1745297810325,1.26571,1580.1,1580.0,8.0884]
[1745297811119,1.26571,1580.1,1580.0,6.322]
[1745297811320,4.47351,1580.1,1580.0,6.322]
[1745297813623,9.47351,1580.1,1580.0,6.322]
[1745297814426,11.3722,1580.1,1579.5,9.5298]
[1745297814720,4.47381,1579.8,1579.6,4.79151]
[1745297815026,4.47381,1579.8,1579.7,1.7849]
[1745297815320,5.39089,1579.9,1579.7,3.05088]
[1745297815525,5.39089,1579.9,1579.8,1.7849]
[1745297816421,1.26595,1579.8,1579.7,6.322]
[1745297816624,1.26595,1579.8,1579.7,8.1069]
[1745297816824,4.47375,1579.8,1579.7,6.322]
[1745297817021,5.31935,1579.8,1579.7,6.322]
[1745297817523,1.26595,1579.8,1579.7,6.322]
[1745297817721,1.26593,1579.9,1579.7,7.58799]
[1745297817921,1.27532427,1580.0,1579.8,3.92359]
[1745297818128,1.27532427,1580.0,1579.9,1.765]
[1745297818422,0.00949427,1580.0,1579.9,3.03087]
[1745297818624,1.27528427,1580.0,1579.9,3.03087]
[1745297818929,1.27528427,1580.0,1579.9,1.765]
[1745297819123,1.27528427,1580.0,1579.9,8.087]
[1745297820217,1.27528427,1580.0,1579.9,9.35287]
[1745297820511,1.27528427,1580.0,1579.9,8.087]
[1745297821522,0.00949427,1580.0,1579.9,8.087]
[1745297821718,0.00949427,1580.0,1579.9,14.35287]
[1745297822025,0.00949427,1580.0,1579.9,9.35287]
[1745297822223,1.27528427,1580.0,1579.9,9.35287]
[1745297822424,0.00949427,1580.0,1579.9,9.35287]
[1745297822629,1.27528427,1580.0,1579.9,9.35287]
[1745297823525,0.00949427,1580.0,1579.9,10.20137]
[1745297824027,0.00949427,1580.0,1579.9,8.9355]
[1745297824028,1.27528427,1580.0,1579.9,8.9355]
[1745297824928,1.27528427,1580.0,1579.9,10.20137]
[1745297825223,0.00949427,1580.0,1579.9,10.20137]
[1745297825425,0.00949427,1580.0,1579.9,13.40917]
[1745297828431,1.27528427,1580.0,1579.9,12.1433]
[1745297828632,0.00949427,1580.0,1579.9,13.40917]
[1745297830231,1.27528427,1580.0,1579.9,12.1433]
[1745297830422,3.08728427,1580.0,1579.9,9.5298]
[1745297830629,7.25028427,1580.0,1579.9,9.5298]
[1745297830827,10.45808427,1580.0,1579.9,6.322]
[1745297831034,15.45808427,1580.0,1579.9,6.322]
[1745297834722,15.45808427,1580.0,1579.9,3.15666173]
[1745297835034,1.26603,1579.7,1579.6,1.7602]
[1745297835718,3.03613,1579.7,1579.6,1.7602]
[1745297837735,3.03613,1579.7,1579.5,6.322]
[1745297837736,1.26611,1579.6,1579.5,6.322]
[1745297837939,7.99071,1579.6,1579.5,6.322]
[1745297839536,7.99071,1579.6,1579.5,5.04268]
[1745297839537,13.50651692,1579.6,1579.5,5.04268]
[1745297839832,13.61714708,1579.6,1579.5,3.70614]
[1745297840238,1.26643,1579.2,1579.1,1.6927]
[1745297840629,3.16569,1579.4,1579.1,1.6927]
[1745297840830,1.26643,1579.2,1579.1,1.6927]
[1745297841235,1.7957,1579.4,1579.0,6.322]
[1745297841443,1.2665,1579.2,1579.0,7.58857]
[1745297841639,1.26651,1579.2,1579.0,48.38857]
[1745297841834,1.26648,1579.2,1579.0,48.38857]
[1745297842139,4.96139,1579.4,1579.0,48.38857]
[1745297842334,3.16569,1579.4,1579.0,48.38857]
[1745297842539,1.26648,1579.2,1579.1,3.5453]
[1745297842839,1.26648,1579.2,1579.1,1.7649]
[1745297845738,1.2664,1579.3,1579.1,1.7649]
[1745297845943,1.2664,1579.3,1579.2,1.26643]
[1745297846244,1.2664,1579.3,1579.2,7.58843]
[1745297846442,1.2664,1579.3,1579.2,12.58843]
[1745297846946,1.2664,1579.3,1579.2,6.322]
[1745297848042,1.2664,1579.3,1579.2,7.58843]
[1745297848241,1.2664,1579.3,1579.2,6.322]
[1745297848937,1.2664,1579.3,1579.2,7.58843]
[1745297851947,10.33655,1579.5,1579.2,7.58843]
[1745297852246,10.33655,1579.5,1579.3,1.26635]
[1745297852447,7.12875,1579.5,1579.4,0.8832]
[1745297852635,7.12875,1579.5,1579.4,1.7757]
[1745297853044,7.23696,1579.6,1579.4,3.04196]
[1745297853242,7.23696,1579.6,1579.4,9.36396]
[1745297854039,7.23696,1579.6,1579.5,1.778]
[1745297855148,7.23696,1579.6,1579.5,8.1]
[1745297855846,1.26607,1579.7,1579.5,8.1]
[1745297856044,3.03797,1579.7,1579.6,3.04411]
[1745297857852,3.03797,1579.7,1579.6,1.778]
[1745297860253,1.26611,1579.6,1579.5,6.322]
[1745297860554,6.33141,1579.6,1579.5,6.322]
[1745297860757,11.33141,1579.6,1579.5,6.322]
[1745297861448,6.33141,1579.6,1579.5,6.322]
[1745297867664,6.33141,1579.6,1579.5,4.8198]
[1745297867956,6.4423112,1579.6,1579.5,4.8198]
[1745297868753,4.47391,1579.6,1579.5,4.8198]
[1745297868952,1.26611,1579.6,1579.5,4.8198]
[1745297869352,3.03561,1579.6,1579.5,4.8198]
[1745297874261,1.26619,1579.5,1579.4,6.322]
[1745297874464,12.18079,1579.5,1579.4,6.322]
[1745297881962,8.97299,1579.5,1579.4,6.322]
[1745297882166,12.18079,1579.5,1579.4,6.322]
[1745297885870,8.00179,1579.5,1579.4,6.322]
[1745297886073,4.47399,1579.5,1579.4,6.322]
[1745297886366,11.44397,1579.6,1579.4,9.26487]
[1745297886580,5.9988,1579.6,1579.5,2.94279]
[1745297886968,7.25011,1579.6,1579.5,6.6766]
[1745297887270,7.25011,1579.6,1579.5,12.9986]
[1745297887477,7.25011,1579.6,1579.5,7.9986]
[1745297888079,7.25011,1579.6,1579.5,9.26479]
[1745297888767,1.26611,1579.6,1579.5,14.26479]
[1745297888974,1.26611,1579.6,1579.5,7.9986]
[1745297891370,3.03231,1579.6,1579.5,7.9986]
[1745297893275,3.93521,1579.6,1579.5,7.9986]
[1745297893776,3.03231,1579.6,1579.5,7.9986]
[1745297893978,1.26611,1579.6,1579.5,7.9986]
[1745297894570,3.03751,1579.6,1579.5,7.9986]
[1745297895175,3.03751,1579.6,1579.5,6.322]
[1745297895375,3.95231,1579.6,1579.5,6.322]
[1745297898975,1.26611,1579.6,1579.5,6.322]
[1745297899180,1.26611,1579.6,1579.5,7.2363]
[1745297899369,4.02391,1579.6,1579.5,7.2363]
[1745297900073,4.02391,1579.6,1579.5,6.322]
[1745297900377,4.93731,1579.6,1579.5,6.322]
[1745297900776,4.93731,1579.6,1579.5,8.0044]
[1745297901675,4.93731,1579.6,1579.5,6.322]
[1745297902075,9.93731,1579.6,1579.5,6.322]
[1745297902475,4.93731,1579.6,1579.5,6.322]
[1745297904183,1.26627,1579.4,1579.3,1.7483]
[1745297904486,5.44227,1579.4,1579.3,1.7483]
[1745297905182,8.05457,1579.4,1579.3,1.7483]
[1745297905384,1.26627,1579.4,1579.3,1.7483]
[1745297909282,1.28107,1579.4,1579.3,1.7483]
[1745297910282,1.26635,1579.3,1579.2,8.0449]
[1745297911176,1.26635,1579.3,1579.2,7.1973]
[1745297911376,5.31765,1579.3,1579.2,6.322]
[1745297911581,7.07805,1579.3,1579.2,6.322]
[1745297911781,17.58805,1579.3,1579.2,6.322]
[1745297911978,7.07805,1579.3,1579.2,6.322]
[1745297913581,1.26692,1578.6,1578.4,15.75601651]
[1745297913886,1.26692,1578.6,1578.5,8.39339954]
[1745297914082,0.00949427,1578.7,1578.6,1.26692]
[1745297914681,0.00949427,1578.7,1578.6,6.26692]
[1745297914879,4.18549427,1578.7,1578.5,14.71539954]
[1745297915076,1.26692,1578.6,1578.5,14.71539954]
[1745297915289,6.32722,1578.6,1578.5,14.71539954]
[1745297915582,0.00949427,1578.7,1578.5,19.71539954]
[1745297915888,0.00949427,1578.7,1578.6,3.05442]
[1745297916084,0.00949427,1578.7,1578.6,1.7875]
[1745297916284,6.37375,1579.3,1578.8,1.26672]
[1745297916476,10.54048972,1579.3,1578.9,3.5317]
[1745297916681,1.26651,1579.1,1579.0,1.7875]
[1745297916986,4.47431,1579.1,1579.0,1.7875]
[1745297917184,3.2078,1579.1,1578.6,7.3838]
[1745297917387,1.26667,1578.9,1578.8,1.77823972]
[1745297919090,4.90777,1578.9,1578.8,1.77823972]
[1745297919483,1.26675,1578.8,1578.7,8.07569427]
[1745297919791,3.11465,1578.8,1578.7,8.07569427]
[1745297919993,3.11465,1578.8,1578.7,6.33149427]
[1745297923594,14.09865,1578.8,1578.7,6.322]
[1745297924191,9.09865,1578.8,1578.7,6.322]
[1745297924989,13.33065,1578.8,1578.7,6.322]
[1745297925193,9.09865,1578.8,1578.7,6.322]
[1745297925585,13.33065,1578.8,1578.7,6.322]
[1745297926890,9.09865,1578.8,1578.7,6.322]
[1745297927089,13.33065,1578.8,1578.7,6.322]
[1745297927294,18.33065,1578.8,1578.7,4.87238]
[1745297927489,13.44155134,1578.8,1578.7,4.87238]
[1745297927792,18.44155134,1578.8,1578.7,4.87238]
[1745297928095,1.267,1578.5,1578.4,3.5315]
[1745297928297,8.7068,1578.5,1578.4,3.5315]
[1745297928888,5.499,1578.5,1578.4,3.5315]
[1745297929087,8.7068,1578.5,1578.4,3.5315]
[1745297929289,8.7068,1578.5,1578.4,9.8535]
[1745297929686,5.499,1578.5,1578.4,9.8535]
[1745297929893,1.267,1578.5,1578.4,9.8535]
[1745297932097,4.4748,1578.5,1578.4,9.8535]